fUST/lending_fUST_20250713
["ID","MTS","AMOUNT","RATE_DAILY","PERIOD"]
[371709575,1752397839784,-460.0,0.00016986,2]
[371709577,1752397839793,-460.0,0.00016986,2]
[371709579,1752397839803,-460.0,0.00016986,2]
[371709581,1752397839812,-460.0,0.00016986,2]
[371709583,1752397839822,-245.33393681,0.00016986,2]
[371709585,1752397839831,-570.09,0.00016986,2]
[371709587,1752397839840,-460.0,0.00016986,2]
[371709589,1752397839850,-460.0,0.00016986,2]
[371709591,1752397839860,-460.0,0.00016986,2]
[371709593,1752397839869,-751.0,0.00016986,2]
[371709595,1752397839879,-460.0,0.00016986,2]
[371709597,1752397839888,-460.0,0.00016986,2]
[371709599,1752397839897,-460.0,0.00016986,2]
[371709601,1752397839908,-1365.09,0.00016986,2]
[371709603,1752397839918,-460.0,0.00016986,2]
[371709605,1752397839928,-1020.42,0.00016986,2]
[371709607,1752397839938,-473.41,0.00016986,2]
[371709609,1752397839947,-460.0,0.00016986,2]
[371709611,1752397839957,-460.0,0.00016986,2]
[371709613,1752397839967,-460.0,0.00016986,2]
[371709615,1752397839977,-706.36,0.00016986,2]
[371709617,1752397839987,-460.0,0.00016986,2]
[371709619,1752397839996,-460.0,0.00016986,2]
[371709621,1752397840007,-460.0,0.00016986,2]
[371709623,1752397840016,-460.0,0.00016986,2]
[371709624,1752397840025,-460.0,0.00016986,2]
[371709626,1752397840035,-460.0,0.00016986,2]
[371709628,1752397840045,-460.0,0.00016986,2]
[371709630,1752397840055,-460.0,0.00016986,2]
[371709632,1752397840064,-460.0,0.00016986,2]
[371709634,1752397840074,-460.0,0.00016986,2]
[371709636,1752397840083,-460.0,0.00016986,2]
[371709638,1752397840091,-942.54,0.00016986,2]
[371709640,1752397840101,-460.0,0.00016986,2]
[371709641,1752397840111,-460.0,0.00016986,2]
[371709643,1752397840120,-460.0,0.00016986,2]
[371709645,1752397840130,-500.0,0.00017023,2]
[371709647,1752397840139,-3908.30138622,0.000171,2]
[371709649,1752397840148,-158.933118,0.00017208,2]
[371709651,1752397840158,-3908.30138619,0.0001721,2]
[371709653,1752397840167,-460.0,0.0001726,2]
[371709654,1752397840176,-460.0,0.0001726,2]
[371709656,1752397840185,-460.0,0.0001726,2]
[371709658,1752397840195,-460.0,0.0001726,2]
[371709660,1752397840204,-460.0,0.0001726,2]
[371709662,1752397840213,-460.0,0.0001726,2]
[371709663,1752397840222,-299.60802603,0.0001726,2]
[371709665,1752397840231,-460.0,0.0001726,2]
[371709667,1752397840241,-460.0,0.0001726,2]
[371709669,1752397840250,-460.0,0.0001726,2]
[371709671,1752397840260,-460.0,0.0001726,2]
[371709673,1752397840269,-460.0,0.0001726,2]
[371709675,1752397840279,-460.0,0.0001726,2]
[371709677,1752397840288,-460.0,0.0001726,2]
[371709679,1752397840297,-460.0,0.0001726,2]
[371709680,1752397840307,-460.0,0.0001726,2]
[371709682,1752397840316,-460.0,0.0001726,2]
[371709684,1752397840326,-482.54,0.0001726,2]
[371709686,1752397840335,-460.0,0.0001726,2]
[371709688,1752397840344,-639.71,0.0001726,2]
[371709690,1752397840353,-460.0,0.0001726,2]
[371709691,1752397840363,-460.0,0.0001726,2]
[371709693,1752397840372,-460.0,0.0001726,2]
[371709695,1752397840382,-244.26,0.0001726,2]
[371709697,1752397840391,-460.0,0.0001726,2]
[371709699,1752397840400,-598.5,0.0001726,2]
[371709701,1752397840409,-460.0,0.0001726,2]
[371709703,1752397840418,-460.0,0.0001726,2]
[371709704,1752397840427,-460.0,0.0001726,2]
[371709706,1752397840437,-498.29,0.0001726,2]
[371709708,1752397840446,-460.0,0.0001726,2]
[371709710,1752397840456,-1577.35,0.0001726,2]
[371709712,1752397840465,-460.0,0.0001726,2]
[371709714,1752397840476,-460.0,0.0001726,2]
[371709716,1752397840486,-460.0,0.0001726,2]
[371709717,1752397840495,-460.0,0.0001726,2]
[371709719,1752397840504,-460.0,0.0001726,2]
[371709721,1752397840515,-460.0,0.0001726,2]
[371709723,1752397840524,-460.0,0.0001726,2]
[371709725,1752397840533,-570.09,0.0001726,2]
[371709727,1752397840542,-751.0,0.0001726,2]
[371709728,1752397840553,-460.0,0.0001726,2]
[371709730,1752397840563,-1365.09,0.0001726,2]
[371709732,1752397840572,-1020.42,0.0001726,2]
[371709734,1752397840582,-473.41,0.0001726,2]
[371709736,1752397840591,-706.36,0.0001726,2]
[371709738,1752397840601,-460.0,0.0001726,2]
[371709739,1752397840610,-460.0,0.0001726,2]
[371709741,1752397840619,-460.0,0.0001726,2]
[371709743,1752397840629,-460.0,0.0001726,2]
[371709745,1752397840639,-460.0,0.0001726,2]
[371709747,1752397840648,-460.0,0.0001726,2]
[371709749,1752397840657,-942.54,0.0001726,2]
[371709751,1752397840666,-460.0,0.0001726,2]
[371709753,1752397840675,-460.0,0.0001726,2]
[371709754,1752397840684,-500.0,0.00017321,2]
[371709756,1752397840694,-500.0,0.00017321,2]
[371709758,1752397840703,-501.58885187,0.00017338,2]
[371709760,1752397840713,-158.933118,0.00017364,2]
[371709762,1752397840722,-160.0,0.00017425,2]
[371709764,1752397840731,-3908.30138619,0.00017521,2]
[371709765,1752397840741,-158.933118,0.00017521,2]
[371709767,1752397840750,-460.0,0.00017534,2]
[371709769,1752397840760,-460.0,0.00017534,2]
[371709771,1752397840770,-460.0,0.00017534,2]
[371709773,1752397840782,-460.0,0.00017534,2]
[371709775,1752397840791,-460.0,0.00017534,2]
[371709777,1752397840800,-460.0,0.00017534,2]
[371709779,1752397840809,-460.0,0.00017534,2]
[371709780,1752397840819,-482.54,0.00017534,2]
[371709782,1752397840829,-639.71,0.00017534,2]
[371709784,1752397840839,-460.0,0.00017534,2]
[371709786,1752397840849,-460.0,0.00017534,2]
[371709788,1752397840858,-460.0,0.00017534,2]
[371709790,1752397840871,-460.0,0.00017534,2]
[371709792,1752397840881,-460.0,0.00017534,2]
[371709794,1752397840890,-460.0,0.00017534,2]
[371709796,1752397840900,-460.0,0.00017534,2]
[371709798,1752397840909,-498.29,0.00017534,2]
[371709799,1752397840918,-460.0,0.00017534,2]
[371709801,1752397840927,-1577.35,0.00017534,2]
[371709803,1752397840937,-460.0,0.00017534,2]
[371709805,1752397840947,-460.0,0.00017534,2]
[371709807,1752397840956,-460.0,0.00017534,2]
[371709809,1752397840965,-460.0,0.00017534,2]
[371709811,1752397840975,-460.0,0.00017534,2]
[371709813,1752397840984,-460.0,0.00017534,2]
[371709814,1752397840993,-460.0,0.00017534,2]
[371709816,1752397841003,-570.09,0.00017534,2]
[371709818,1752397841013,-751.0,0.00017534,2]
[371709820,1752397841023,-460.0,0.00017534,2]
[371709822,1752397841033,-1365.09,0.00017534,2]
[371709824,1752397841042,-1020.42,0.00017534,2]
[371709826,1752397841052,-473.41,0.00017534,2]
[371709828,1752397841061,-706.36,0.00017534,2]
[371709830,1752397841071,-460.0,0.00017534,2]
[371709831,1752397841080,-460.0,0.00017534,2]
[371709833,1752397841090,-460.0,0.00017534,2]
[371709835,1752397841099,-460.0,0.00017534,2]
[371709837,1752397841109,-460.0,0.00017534,2]
[371709839,1752397841119,-942.54,0.00017534,2]
[371709841,1752397841129,-460.0,0.00017534,2]
[371709843,1752397841139,-460.0,0.00017534,2]
[371709854,1752397841245,-1000.0,0.00017571,2]
[371709856,1752397841256,-196.87336587,0.00017583,2]
[371709858,1752397841266,-158.933118,0.00017677,2]
[371709860,1752397841275,-524.29268096,0.00017808,2]
[371709862,1752397841285,-460.0,0.00017808,2]
[371709864,1752397841294,-460.0,0.00017808,2]
[371709866,1752397841304,-460.0,0.00017808,2]
[371709867,1752397841313,-460.0,0.00017808,2]
[371709869,1752397841322,-460.0,0.00017808,2]
[371709871,1752397841332,-482.54,0.00017808,2]
[371709873,1752397841342,-639.71,0.00017808,2]
[371709875,1752397841351,-460.0,0.00017808,2]
[371709877,1752397841360,-460.0,0.00017808,2]
[371709879,1752397841369,-460.0,0.00017808,2]
[371709881,1752397841378,-460.0,0.00017808,2]
[371709882,1752397841387,-460.0,0.00017808,2]
[371709884,1752397841397,-498.29,0.00017808,2]
[371709886,1752397841406,-460.0,0.00017808,2]
[371709888,1752397841415,-1577.35,0.00017808,2]
[371709890,1752397841424,-421.52,0.00017808,2]
[371709892,1752397841433,-460.0,0.00017808,2]
[371709894,1752397841442,-460.0,0.00017808,2]
[371709895,1752397841451,-496.11,0.00017808,2]
[371709897,1752397841460,-460.0,0.00017808,2]
[371709899,1752397841470,-566.36,0.00017808,2]
[371709901,1752397841483,-570.09,0.00017808,2]
[371709903,1752397841493,-751.0,0.00017808,2]
[371709905,1752397841502,-460.0,0.00017808,2]
[371709907,1752397841512,-1365.09,0.00017808,2]
[371709909,1752397841522,-1020.42,0.00017808,2]
[371709911,1752397841532,-473.41,0.00017808,2]
[371709913,1752397841541,-706.36,0.00017808,2]
[371709914,1752397841552,-460.0,0.00017808,2]
[371709916,1752397841563,-460.0,0.00017808,2]
[371709918,1752397841573,-460.0,0.00017808,2]
[371709920,1752397841583,-460.0,0.00017808,2]
[371709922,1752397841593,-179.02,0.00017808,2]
[371709924,1752397841603,-942.54,0.00017808,2]
[371709926,1752397841612,-560.72,0.00017808,2]
[371709928,1752397841622,-3908.30138619,0.00017831,2]
[371709930,1752397841632,-158.933118,0.00017834,2]
[371709932,1752397841642,-2789.62846286,0.00017845,2]
[371709934,1752397841652,-1200.0,0.00017855,2]
[371709936,1752397841661,-420.0,0.00017856,2]
[371709938,1752397841671,-503.11993608,0.000179,2]
[371709939,1752397841680,-503.94399516,0.000179,2]
[371709941,1752397841690,-500.0,0.000179,2]
[371709943,1752397841699,-500.0,0.000179,2]
[371709945,1752397841709,-1680.0,0.00017945,2]
[371709947,1752397841717,-400.0,0.00017973,2]
[371709949,1752397841727,-158.933118,0.0001799,2]
[371709951,1752397841737,-549.0,0.00018,7]
[371709953,1752397841746,-460.0,0.00018082,2]
[371709955,1752397841756,-460.0,0.00018082,2]
[371709957,1752397841766,-499.32,0.00018082,2]
[371709959,1752397841776,-460.0,0.00018082,2]
[371709960,1752397841785,-460.0,0.00018082,2]
[371709962,1752397841795,-482.54,0.00018082,2]
[371709964,1752397841805,-639.71,0.00018082,2]
[371709966,1752397841815,-460.0,0.00018082,2]
[371709968,1752397841825,-460.0,0.00018082,2]
[371709970,1752397841835,-460.0,0.00018082,2]
[371709972,1752397841845,-460.0,0.00018082,2]
[371709974,1752397841854,-460.0,0.00018082,2]
[371709976,1752397841864,-498.29,0.00018082,2]
[371709978,1752397841872,-460.0,0.00018082,2]
[371709980,1752397841882,-1577.35,0.00018082,2]
[371709982,1752397841891,-460.0,0.00018082,2]
[371709983,1752397841900,-460.0,0.00018082,2]
[371709985,1752397841909,-460.0,0.00018082,2]
[371709987,1752397841918,-570.09,0.00018082,2]
[371709989,1752397841928,-751.0,0.00018082,2]
[371709991,1752397841937,-460.0,0.00018082,2]
[371709993,1752397841946,-1365.09,0.00018082,2]
[371709995,1752397841955,-1020.42,0.00018082,2]
[371709997,1752397841965,-473.41,0.00018082,2]
[371709999,1752397841974,-706.36,0.00018082,2]
[371710001,1752397841984,-460.0,0.00018082,2]
[371710003,1752397841994,-460.0,0.00018082,2]
[371710005,1752397842003,-460.0,0.00018082,2]
[371710006,1752397842013,-942.54,0.00018082,2]
[371710008,1752397842022,-3908.30138619,0.00018141,2]
[371710010,1752397842032,-158.933118,0.00018147,2]
[371710012,1752397842042,-160.0,0.0001816,2]
[371710014,1752397842051,-12598.31844336,0.0001816,2]
[371710016,1752397842062,-214.29528141,0.0001816,2]
[371710018,1752397842071,-160.0,0.00018161,2]
[371710020,1752397842081,-230.68503973,0.00018161,2]
[371710022,1752397842090,-160.0,0.00018161,2]
[371710024,1752397842099,-838.53376533,0.00018161,2]
[371710025,1752397842108,-160.0,0.00018161,2]
[371710027,1752397842118,-215.42595214,0.00018161,2]
[371710029,1752397842128,-158.933118,0.00018303,2]
[371710031,1752397842138,-460.0,0.00018356,2]
[371710033,1752397842148,-460.0,0.00018356,2]
[371710035,1752397842157,-201.72,0.00018356,2]
[371710037,1752397842166,-460.0,0.00018356,2]
[371710039,1752397842176,-482.54,0.00018356,2]
[371710041,1752397842185,-639.71,0.00018356,2]
[371710043,1752397842195,-460.0,0.00018356,2]
[371710045,1752397842204,-460.0,0.00018356,2]
[371710047,1752397842213,-498.29,0.00018356,2]
[371710049,1752397842222,-460.0,0.00018356,2]
[371710050,1752397842232,-1577.35,0.00018356,2]
[371710053,1752397842241,-460.0,0.00018356,2]
[371710055,1752397842251,-460.0,0.00018356,2]
[371710057,1752397842260,-460.0,0.00018356,2]
[371710059,1752397842270,-570.09,0.00018356,2]
[371710061,1752397842280,-751.0,0.00018356,2]
[371710063,1752397842289,-460.0,0.00018356,2]
[371710065,1752397842298,-1365.09,0.00018356,2]
[371710067,1752397842308,-1020.42,0.00018356,2]
[371710068,1752397842317,-473.41,0.00018356,2]
[371710070,1752397842326,-706.36,0.00018356,2]
[371710072,1752397842336,-460.0,0.00018356,2]
[371710074,1752397842346,-460.0,0.00018356,2]
[371710076,1752397842355,-460.0,0.00018356,2]
[371710078,1752397842365,-942.54,0.00018356,2]
[371710080,1752397842374,-1000.0,0.00018448,2]
[371710082,1752397842383,-500.0,0.00018448,2]
[371710085,1752397842392,-3908.30138619,0.00018452,2]
[371710087,1752397842401,-158.933118,0.00018459,2]
[371710088,1752397842411,-158.933118,0.00018616,2]
[371710090,1752397842419,-307.56831972,0.0001863,2]
[371710092,1752397842429,-460.0,0.0001863,2]
[371710094,1752397842439,-586.4,0.0001863,2]
[371710096,1752397842448,-482.54,0.0001863,2]
[371710098,1752397842458,-639.71,0.0001863,2]
[371710100,1752397842467,-460.0,0.0001863,2]
[371710102,1752397842479,-460.0,0.0001863,2]
[371710104,1752397842489,-498.29,0.0001863,2]
[371710106,1752397842498,-460.0,0.0001863,2]
[371710108,1752397842508,-1577.35,0.0001863,2]
[371710109,1752397842518,-468.23128138,0.0001863,2]
[371710111,1752397842528,-460.0,0.0001863,2]
[371710113,1752397842538,-460.0,0.0001863,2]
[371710115,1752397842548,-570.09,0.0001863,2]
[371710117,1752397842559,-751.0,0.0001863,2]
[371710119,1752397842569,-460.0,0.0001863,2]
[371710121,1752397842578,-1365.09,0.0001863,2]
[371710123,1752397842587,-1020.42,0.0001863,2]
[371710125,1752397842597,-473.41,0.0001863,2]
[371710127,1752397842614,-706.36,0.0001863,2]
[371710130,1752397842628,-460.0,0.0001863,2]
[371710132,1752397842638,-460.0,0.0001863,2]
[371710134,1752397842649,-460.0,0.0001863,2]
[371710136,1752397842659,-942.54,0.0001863,2]
[371710138,1752397842669,-168.0,0.00018749,2]
[371710140,1752397842679,-3908.30138619,0.00018762,2]
[371710142,1752397842689,-158.933118,0.00018772,2]
[371710144,1752397842699,-168.0,0.00018829,2]
[371710146,1752397842708,-196.87336587,0.00018839,2]
[371710147,1752397842718,-191.97668805,0.000189,2]
[371710150,1752397842729,-454.5,0.00018904,2]
[371710151,1752397842739,-482.54,0.00018904,2]
[371710153,1752397842749,-639.71,0.00018904,2]
[371710155,1752397842759,-460.0,0.00018904,2]
[371710157,1752397842770,-460.0,0.00018904,2]
[371710159,1752397842780,-498.29,0.00018904,2]
[371710161,1752397842789,-460.0,0.00018904,2]
[371710163,1752397842799,-1577.35,0.00018904,2]
[371710165,1752397842809,-460.0,0.00018904,2]
[371710167,1752397842820,-460.0,0.00018904,2]
[371710168,1752397842829,-570.09,0.00018904,2]
[371710169,1752397842838,-751.0,0.00018904,2]
[371710170,1752397842848,-460.0,0.00018904,2]
[371710171,1752397842858,-1365.09,0.00018904,2]
[371710172,1752397842867,-1020.42,0.00018904,2]
[371710173,1752397842876,-473.41,0.00018904,2]
[371710174,1752397842886,-706.36,0.00018904,2]
[371710175,1752397842896,-460.0,0.00018904,2]
[371710176,1752397842905,-460.0,0.00018904,2]
[371710177,1752397842915,-460.0,0.00018904,2]
[371710178,1752397842924,-942.54,0.00018904,2]
[371710179,1752397842933,-280.0,0.00018973,2]
[371710180,1752397842943,-500.0,0.00018983,2]
[371710181,1752397842952,-500.0,0.00018983,2]
[371710182,1752397842962,-1500.0,0.00018996,2]
[371710183,1752397842972,-280.0,0.00019029,2]
[371710184,1752397842981,-280.0,0.00019065,2]
[371710185,1752397842990,-3908.30138619,0.00019072,2]
[371710186,1752397842999,-168.0,0.00019077,2]
[371710187,1752397843010,-280.0,0.00019093,2]
[371710188,1752397843019,-168.0,0.00019104,2]
[371710189,1752397843028,-280.0,0.00019135,2]
[371710190,1752397843037,-482.54,0.00019178,2]
[371710191,1752397843047,-639.71,0.00019178,2]
[371710192,1752397843058,-460.0,0.00019178,2]
[371710193,1752397843067,-460.0,0.00019178,2]
[371710194,1752397843076,-498.29,0.00019178,2]
[371710195,1752397843086,-460.0,0.00019178,2]
[371710196,1752397843095,-1577.35,0.00019178,2]
[371710197,1752397843105,-460.0,0.00019178,2]
[371710198,1752397843115,-460.0,0.00019178,2]
[371710199,1752397843124,-570.09,0.00019178,2]
[371710200,1752397843134,-751.0,0.00019178,2]
[371710201,1752397843144,-460.0,0.00019178,2]
[371710203,1752397843153,-1365.09,0.00019178,2]
[371710205,1752397843163,-1020.42,0.00019178,2]
[371710208,1752397843174,-473.41,0.00019178,2]
[371710210,1752397843184,-706.36,0.00019178,2]
[371710212,1752397843194,-207.75,0.00019178,2]
[371710214,1752397843204,-460.0,0.00019178,2]
[371710216,1752397843214,-460.0,0.00019178,2]
[371710218,1752397843223,-942.54,0.00019178,2]
[371710220,1752397843233,-666.0,0.00019178,2]
[371710222,1752397843243,-258.775398,0.00019178,2]
[371710224,1752397843252,-1153.9,0.000192,2]
[371710226,1752397843263,-171.81,0.00019217,2]
[371710228,1752397843272,-280.0,0.0001928,2]
[371710230,1752397843282,-280.0,0.0001929,2]
[371710232,1752397843291,-280.0,0.00019345,2]
[371710233,1752397843300,-3908.30138619,0.00019383,2]
[371710235,1752397843310,-207.4,0.00019393,2]
[371710238,1752397843320,-1300.0,0.0001942,2]
[371710240,1752397843329,-199.56185223,0.00019428,2]
[371710241,1752397843339,-151.0,0.00019428,2]
[371710244,1752397843348,-500.0,0.00019428,2]
[371710246,1752397843359,-656.0,0.00019428,2]
[371710248,1752397843369,-500.0,0.00019428,2]
[371710250,1752397843379,-198.0,0.00019428,2]
[371710252,1752397843389,-500.0,0.00019428,2]
[371710254,1752397843398,-500.0,0.00019428,2]
[371710256,1752397843407,-274.08742551,0.00019428,2]
[371710258,1752397843417,-500.0,0.00019428,2]
[371710260,1752397843426,-151.0,0.00019428,2]
[371710262,1752397843436,-293.68440778,0.00019428,2]
[371710264,1752397843445,-209.78734587,0.00019428,2]
[371710266,1752397843455,-482.54,0.00019452,2]
[371710268,1752397843464,-639.71,0.00019452,2]
[371710270,1752397843475,-460.0,0.00019452,2]
[371710272,1752397843487,-460.0,0.00019452,2]
[371710274,1752397843496,-498.29,0.00019452,2]
[371710276,1752397843507,-460.0,0.00019452,2]
[371710278,1752397843517,-1577.35,0.00019452,2]
[371710280,1752397843528,-460.0,0.00019452,2]
[371710282,1752397843538,-460.0,0.00019452,2]
[371710284,1752397843548,-570.09,0.00019452,2]
[371710286,1752397843559,-751.0,0.00019452,2]
[371710289,1752397843570,-341.42,0.00019452,2]
[371710291,1752397843579,-1365.09,0.00019452,2]
[371710293,1752397843589,-1020.42,0.00019452,2]
[371710295,1752397843599,-473.41,0.00019452,2]
[371710297,1752397843609,-706.36,0.00019452,2]
[371710299,1752397843618,-208.16,0.00019452,2]
[371710301,1752397843628,-460.0,0.00019452,2]
[371710303,1752397843638,-942.54,0.00019452,2]
[371710305,1752397843647,-500.0,0.00019455,2]
[371710321,1752397843792,-656.0,0.00019455,2]
[371710324,1752397843803,-500.0,0.00019455,2]
[371710326,1752397843815,-500.0,0.00019455,2]
[371710328,1752397843826,-500.0,0.00019455,2]
[371710329,1752397843835,-500.0,0.00019455,2]
[371710332,1752397843845,-247.62234683,0.00019455,2]
[371710334,1752397843855,-500.0,0.00019483,2]
[371710336,1752397843865,-656.0,0.00019483,2]
[371710338,1752397843875,-516.43685009,0.00019483,2]
[371710340,1752397843888,-500.0,0.00019483,2]
[371710342,1752397843898,-500.0,0.00019483,2]
[371710344,1752397843907,-500.0,0.00019483,2]
[371710346,1752397843917,-500.0,0.0001951,2]
[371710348,1752397843927,-656.0,0.0001951,2]
[371710350,1752397843938,-500.0,0.0001951,2]
[371710352,1752397843948,-500.0,0.0001951,2]
[371710354,1752397843958,-500.0,0.0001951,2]
[371710356,1752397843967,-587.0,0.00019516,2]
[371710358,1752397843977,-1000.0,0.00019531,2]
[371710360,1752397843988,-500.0,0.00019531,2]
[371710362,1752397843998,-246.04018979,0.00019538,2]
[371710364,1752397844008,-656.0,0.00019538,2]
[371710366,1752397844018,-500.0,0.00019538,2]
[371710368,1752397844028,-500.0,0.00019538,2]
[371710370,1752397844037,-500.0,0.00019538,2]
[371710372,1752397844047,-517.29046175,0.00019544,2]
[371710375,1752397844057,-656.0,0.00019565,2]
[371710377,1752397844067,-500.0,0.00019565,2]
[371710379,1752397844077,-500.0,0.00019565,2]
[371710381,1752397844086,-261.26192034,0.00019565,2]
[371710383,1752397844096,-160.0,0.00019566,3]
[371710385,1752397844106,-656.0,0.00019592,2]
[371710387,1752397844115,-500.0,0.00019592,2]
[371710389,1752397844125,-500.0,0.00019592,2]
[371710391,1752397844135,-656.0,0.0001962,2]
[371710393,1752397844144,-572.45188498,0.0001962,2]
[371710395,1752397844153,-500.0,0.0001962,2]
[371710397,1752397844164,-656.0,0.00019647,2]
[371710399,1752397844173,-273.54425928,0.00019647,2]
[371710401,1752397844183,-192.7,0.00019657,3]
[371710403,1752397844193,-656.0,0.00019675,2]
[371710405,1752397844203,-3908.30138619,0.00019693,2]
[371710407,1752397844212,-656.0,0.00019702,2]
[371710409,1752397844222,-265.0,0.00019711,2]
[371710411,1752397844231,-280.0,0.00019714,2]
[371710412,1752397844241,-482.54,0.00019726,2]
[371710414,1752397844251,-639.71,0.00019726,2]
[371710416,1752397844260,-460.0,0.00019726,2]
[371710418,1752397844270,-398.84269874,0.00019726,2]
[371710420,1752397844280,-498.29,0.00019726,2]
[371710423,1752397844289,-588.43,0.00019726,2]
[371710425,1752397844299,-1577.35,0.00019726,2]
[371710427,1752397844308,-460.0,0.00019726,2]
[371710428,1752397844317,-460.0,0.00019726,2]
[371710431,1752397844327,-570.09,0.00019726,2]
[371710433,1752397844336,-751.0,0.00019726,2]
[371710434,1752397844345,-1365.09,0.00019726,2]
[371710437,1752397844355,-1020.42,0.00019726,2]
[371710439,1752397844366,-473.41,0.00019726,2]
[371710441,1752397844375,-706.36,0.00019726,2]
[371710443,1752397844384,-460.0,0.00019726,2]
[371710445,1752397844394,-942.54,0.00019726,2]
[371710447,1752397844404,-656.0,0.00019729,2]
[371710449,1752397844414,-656.0,0.00019757,2]
[371710451,1752397844423,-656.0,0.00019784,2]
[371710453,1752397844432,-280.0,0.00019811,2]
[371710455,1752397844442,-656.0,0.00019812,2]
[371710457,1752397844451,-280.0,0.00019812,2]
[371710459,1752397844460,-656.0,0.00019839,2]
[371710461,1752397844470,-168.0,0.00019863,2]
[371710463,1752397844484,-656.0,0.00019866,2]
[371710465,1752397844493,-656.0,0.00019894,2]
[371710467,1752397844502,-656.0,0.00019921,2]
[371710469,1752397844514,-656.0,0.00019949,2]
[371710471,1752397844524,-200.44,0.00019956,2]
[371710473,1752397844534,-154.849508,0.0001996,2]
[371710475,1752397844543,-280.0,0.0001997,2]
[371710477,1752397844554,-656.0,0.00019976,2]
[371710479,1752397844564,-500.0,0.00019999,2]
[371710481,1752397844573,-500.0,0.0002,12]
[371710483,1752397844582,-1632.0,0.0002,2]
[371710485,1752397844592,-24639.08,0.0002,2]
[371710487,1752397844601,-1746.533893,0.0002,2]
[371710489,1752397844611,-482.54,0.0002,2]
[371710491,1752397844619,-639.71,0.0002,2]
[371710493,1752397844629,-460.0,0.0002,2]
[371710495,1752397844638,-498.29,0.0002,2]
[371710497,1752397844648,-1577.35,0.0002,2]
[371710499,1752397844657,-460.0,0.0002,2]
[371710501,1752397844666,-460.0,0.0002,2]
[371710503,1752397844676,-570.09,0.0002,2]
[371710505,1752397844685,-300.2710838,0.0002,2]
[371710507,1752397844695,-751.0,0.0002,2]
[371710509,1752397844704,-1365.09,0.0002,2]
[371710511,1752397844714,-473.41,0.0002,2]
[371710513,1752397844724,-1020.42,0.0002,2]
[371710515,1752397844733,-706.36,0.0002,2]
[371710517,1752397844743,-460.0,0.0002,2]
[371710519,1752397844753,-942.54,0.0002,2]
[371710521,1752397844763,-656.0,0.00020003,2]
[371710523,1752397844773,-3908.30138619,0.00020003,2]
[371710525,1752397844782,-168.0,0.00020011,2]
[371710527,1752397844792,-160.0,0.00020018,4]
[371710529,1752397844802,-656.0,0.00020031,2]
[371710531,1752397844812,-657.39459525,0.00020058,2]
[371710533,1752397844822,-1500.0,0.00020079,2]
[371710535,1752397844831,-196.87336587,0.00020094,2]
[371710537,1752397844841,-168.0,0.00020114,2]
[371710539,1752397844851,-192.7,0.00020133,3]